[Event "Live Chess"]
[Site "Chess.com"]
[Date "2023.05.21"]
[Round "-"]
[White "gmnorfolk"]
[Black "jagbama"]
[Result "0-1"]
[WhiteElo "2111"]
[BlackElo "1161"]
[TimeControl "300"]
[EndTime "16:00:52 PDT"]
[Termination "jagbama won by resignation"]

1. d4 {[%clk 0:04:58.5]} 1... d5 {[%clk 0:04:58.9]} 2. c4 {[%clk 0:04:57.2]}
2... Nf6 {[%clk 0:04:56.5]} 3. cxd5 {[%clk 0:04:56.2]} 3... Nxd5 {[%clk
0:04:55.5]} 4. Nf3 {[%clk 0:04:56]} 4... c6 {[%clk 0:04:48.9]} 5. e4 {[%clk
0:04:54.5]} 5... Nf6 {[%clk 0:04:45.9]} 6. Nc3 {[%clk 0:04:53.7]} 6... e6 {[%clk
0:04:43.1]} 7. Be3 {[%clk 0:04:50.7]} 7... Bb4 {[%clk 0:04:40.6]} 8. Bd3 {[%clk
0:04:47.5]} 8... Qa5 {[%clk 0:04:30.6]} 9. O-O {[%clk 0:04:45.1]} 9... Bxc3
{[%clk 0:04:29.7]} 10. bxc3 {[%clk 0:04:44.2]} 10... Qxc3 {[%clk 0:04:29]} 11.
Rc1 {[%clk 0:04:43.7]} 11... Qb2 {[%clk 0:04:22.9]} 12. Rc2 {[%clk 0:04:42.1]}
12... Qa3 {[%clk 0:04:21.4]} 13. Ne5 {[%clk 0:04:35.4]} 13... Nbd7 {[%clk
0:03:55]} 14. Nc4 {[%clk 0:04:31.7]} 14... Qe7 {[%clk 0:03:52.3]} 15. e5 {[%clk
0:04:28.7]} 15... Nd5 {[%clk 0:03:48.2]} 16. Nd6+ {[%clk 0:04:28.6]} 16... Kd8
{[%clk 0:03:41.6]} 17. Nc4 {[%clk 0:04:28.5]} 17... Nxe3 {[%clk 0:03:32.6]} 18.
Nd6 {[%clk 0:04:28.4]} 18... Nxd1 {[%clk 0:03:28.6]} 19. Rxd1 {[%clk 0:04:26.7]}
19... Kc7 {[%clk 0:03:13.8]} 20. Nb5+ {[%clk 0:04:23]} 20... Kd8 {[%clk
0:03:09.1]} 21. Nd6 {[%clk 0:04:21.4]} 21... h5 {[%clk 0:03:05.4]} 22. f4 {[%clk
0:04:18.9]} 22... h4 {[%clk 0:03:03.4]} 23. f5 {[%clk 0:04:18]} 23... h3 {[%clk
0:02:59]} 24. g3 {[%clk 0:04:16.1]} 24... Rf8 {[%clk 0:02:49]} 25. Rf2 {[%clk
0:04:13.5]} 25... Qg5 {[%clk 0:02:47.3]} 26. Re1 {[%clk 0:04:04.3]} 26... Nb6
{[%clk 0:02:31]} 27. Ne4 {[%clk 0:03:50.5]} 27... Qg4 {[%clk 0:02:17.5]} 28. Rf4
{[%clk 0:03:43.6]} 28... Qh5 {[%clk 0:02:04.3]} 29. f6 {[%clk 0:03:25.2]} 29...
g6 {[%clk 0:01:53.8]} 30. Be2 {[%clk 0:03:22.3]} 30... Qh6 {[%clk 0:01:44.8]}
31. Kf2 {[%clk 0:03:16.3]} 31... Nd5 {[%clk 0:01:42.3]} 32. Rh4 {[%clk
0:03:14.3]} 32... Qe3+ {[%clk 0:01:39.4]} 33. Kf1 {[%clk 0:03:10.3]} 33... Bd7
{[%clk 0:01:14.1]} 34. Nd6 {[%clk 0:03:07]} 34... Kc7 {[%clk 0:01:05.1]} 35. Re4
{[%clk 0:02:58.4]} 35... Qc3 {[%clk 0:00:41.4]} 36. Bc4 {[%clk 0:02:47.2]} 36...
Qf3+ {[%clk 0:00:33.6]} 0-1

[Event "Live Chess"]
[Site "Chess.com"]
[Date "2023.05.21"]
[Round "-"]
[White "BJAW87"]
[Black "Biranidun"]
[Result "0-1"]
[WhiteElo "1426"]
[BlackElo "2684"]
[TimeControl "300"]
[EndTime "16:00:53 PDT"]
[Termination "Biranidun won on time"]

1. e4 {[%clk 0:04:59.1]} 1... c5 {[%clk 0:04:59.1]} 2. Nf3 {[%clk 0:04:58.1]}
2... d6 {[%clk 0:04:58.6]} 3. c3 {[%clk 0:04:55.8]} 3... Nf6 {[%clk 0:04:58]} 4.
e5 {[%clk 0:04:52.7]} 4... dxe5 {[%clk 0:04:56.4]} 5. Nxe5 {[%clk 0:04:52.6]}
5... a6 {[%clk 0:04:56.2]} 6. Bc4 {[%clk 0:04:47.6]} 6... e6 {[%clk 0:04:55.6]}
7. O-O {[%clk 0:04:43.4]} 7... Bd6 {[%clk 0:04:55.1]} 8. f4 {[%clk 0:04:37.5]}
8... O-O {[%clk 0:04:52.7]} 9. Qf3 {[%clk 0:04:34.2]} 9... Qc7 {[%clk
0:04:50.9]} 10. Qg3 {[%clk 0:04:31.2]} 10... Nbd7 {[%clk 0:04:48.2]} 11. d4
{[%clk 0:04:07]} 11... cxd4 {[%clk 0:04:46.9]} 12. cxd4 {[%clk 0:04:06.9]} 12...
b5 {[%clk 0:04:11]} 13. Bb3 {[%clk 0:03:56.9]} 13... Bb7 {[%clk 0:04:09.9]} 14.
Nc3 {[%clk 0:03:41.6]} 14... Nb6 {[%clk 0:04:08.5]} 15. Bd2 {[%clk 0:03:12.9]}
15... Rad8 {[%clk 0:04:06.1]} 16. Rac1 {[%clk 0:03:04.8]} 16... Qe7 {[%clk
0:04:04.4]} 17. f5 {[%clk 0:02:56.7]} 17... b4 {[%clk 0:03:57.8]} 18. Bh6 {[%clk
0:02:49.8]} 18... Nh5 {[%clk 0:03:51.8]} 19. Qg4 {[%clk 0:02:41.6]} 19... Qf6
{[%clk 0:03:36.4]} 20. fxe6 {[%clk 0:02:15]} 20... Qxh6 {[%clk 0:03:32.1]} 21.
exf7+ {[%clk 0:02:13]} 21... Kh8 {[%clk 0:03:31.5]} 22. Ne4 {[%clk 0:02:10]}
22... Qe3+ {[%clk 0:03:07.6]} 23. Nf2 {[%clk 0:01:55.3]} 23... Bxe5 {[%clk
0:03:01.5]} 24. dxe5 {[%clk 0:01:45.9]} 24... Qxe5 {[%clk 0:02:49.1]} 25. Rce1
{[%clk 0:01:43.3]} 25... Qc5 {[%clk 0:02:43.7]} 26. Re2 {[%clk 0:01:04.6]} 26...
Nf6 {[%clk 0:02:42.4]} 27. Qh4 {[%clk 0:00:40.9]} 27... Bd5 {[%clk 0:02:40.2]}
28. Bxd5 {[%clk 0:00:30]} 28... Nbxd5 {[%clk 0:02:40.1]} 29. Rfe1 {[%clk
0:00:14.6]} 29... Rxf7 {[%clk 0:02:38.8]} 30. Re8+ {[%clk 0:00:12.2]} 30... Rxe8
{[%clk 0:02:37.9]} 31. Rxe8+ {[%clk 0:00:01.4]} 31... Nxe8 {[%clk 0:02:37.8]}
0-1

[Event "Live Chess"]
[Site "Chess.com"]
[Date "2023.05.21"]
[Round "-"]
[White "manthanit"]
[Black "Conradical12"]
[Result "1/2-1/2"]
[WhiteElo "1055"]
[BlackElo "1604"]
[TimeControl "300"]
[EndTime "16:00:57 PDT"]
[Termination "Game drawn by repetition"]

1. e4 {[%clk 0:04:58.4]} 1... e5 {[%clk 0:04:58.4]} 2. Nf3 {[%clk 0:04:57.7]}
2... Nc6 {[%clk 0:04:57.7]} 3. Bc4 {[%clk 0:04:56.8]} 3... Nf6 {[%clk
0:04:57.4]} 4. d3 {[%clk 0:04:56.2]} 4... Bc5 {[%clk 0:04:56.2]} 5. O-O {[%clk
0:04:52.8]} 5... Ng4 {[%clk 0:04:55.7]} 6. h3 {[%clk 0:04:49.4]} 6... h5 {[%clk
0:04:54.5]} 7. Qe2 {[%clk 0:04:41.9]} 7... d5 {[%clk 0:04:52.2]} 8. exd5 {[%clk
0:04:40.5]} 8... Na5 {[%clk 0:04:51.5]} 9. Be3 {[%clk 0:04:34.4]} 9... Nxc4
{[%clk 0:04:48.9]} 10. dxc4 {[%clk 0:04:27.7]} 10... Bxe3 {[%clk 0:04:46.8]} 11.
fxe3 {[%clk 0:04:26.5]} 11... Qd6 {[%clk 0:04:43]} 12. hxg4 {[%clk 0:04:24.7]}
12... hxg4 {[%clk 0:04:41.4]} 13. Nh2 {[%clk 0:04:21.6]} 13... g3 {[%clk
0:04:40]} 14. Ng4 {[%clk 0:04:20.4]} 14... Qg6 {[%clk 0:04:22.6]} 15. Qf3 {[%clk
0:04:18.4]} 15... Bxg4 {[%clk 0:04:19.8]} 16. Qxg3 {[%clk 0:04:05.3]} 16...
O-O-O {[%clk 0:04:16.1]} 17. Nc3 {[%clk 0:04:02.7]} 17... Rh5 {[%clk 0:04:13]}
18. Qxe5 {[%clk 0:03:58.4]} 18... Rxe5 {[%clk 0:04:10.9]} 19. e4 {[%clk
0:03:54.1]} 19... Rh8 {[%clk 0:04:07.6]} 20. Kf2 {[%clk 0:03:49.7]} 20... Qf6+
{[%clk 0:04:05.4]} 21. Ke3 {[%clk 0:03:48.2]} 21... Qg5+ {[%clk 0:04:03.1]} 22.
Kd4 {[%clk 0:03:47.2]} 22... Qd2+ {[%clk 0:03:54.2]} 23. Kxe5 {[%clk 0:03:44.1]}
23... Rh5+ {[%clk 0:03:50.9]} 24. Rf5 {[%clk 0:03:39.7]} 24... f6+ {[%clk
0:03:49.1]} 25. Ke6 {[%clk 0:03:37.8]} 25... Bxf5+ {[%clk 0:03:48.1]} 26. exf5
{[%clk 0:03:37]} 26... Qe3+ {[%clk 0:03:46]} 27. Kf7 {[%clk 0:03:35.2]} 27...
Kd7 {[%clk 0:03:44.8]} 28. Kxg7 {[%clk 0:03:31.3]} 28... Qe7+ {[%clk 0:03:44.1]}
29. Kg6 {[%clk 0:03:30]} 29... Qh7+ {[%clk 0:03:41.3]} 30. Kxf6 {[%clk
0:03:28.8]} 30... Qh6+ {[%clk 0:03:40.6]} 31. Ke5 {[%clk 0:03:27.5]} 31... Rh4
{[%clk 0:03:38.4]} 32. Ne4 {[%clk 0:03:16.4]} 32... Qf4+ {[%clk 0:03:34.1]} 33.
Kd4 {[%clk 0:03:10.9]} 33... Qxe4+ {[%clk 0:03:32.9]} 34. Kc3 {[%clk 0:03:09.7]}
34... Qxc4+ {[%clk 0:03:31.9]} 35. Kd2 {[%clk 0:03:08.3]} 35... Rd4+ {[%clk
0:03:31.4]} 36. Ke3 {[%clk 0:03:06.7]} 36... Re4+ {[%clk 0:03:29.5]} 37. Kd2
{[%clk 0:03:05.5]} 37... Qxc2+ {[%clk 0:03:28.5]} 38. Kxc2 {[%clk 0:03:02.2]}
38... Re2+ {[%clk 0:03:26.4]} 39. Kc3 {[%clk 0:03:01]} 39... Rxg2 {[%clk
0:03:25.1]} 40. Rf1 {[%clk 0:02:59.1]} 40... Rg3+ {[%clk 0:03:23.9]} 41. Kb4
{[%clk 0:02:53.9]} 41... Rg8 {[%clk 0:03:21.7]} 42. f6 {[%clk 0:02:52.4]} 42...
Rf8 {[%clk 0:03:21.1]} 43. Kc4 {[%clk 0:02:50.1]} 43... Kd6 {[%clk 0:03:20]} 44.
Kd4 {[%clk 0:02:49.3]} 44... a6 {[%clk 0:03:17.9]} 45. b4 {[%clk 0:02:48]} 45...
b6 {[%clk 0:03:16.3]} 46. a4 {[%clk 0:02:47.6]} 46... c6 {[%clk 0:03:14.6]} 47.
dxc6 {[%clk 0:02:46]} 47... Kxc6 {[%clk 0:03:14]} 48. Kc4 {[%clk 0:02:43.6]}
48... b5+ {[%clk 0:03:12.4]} 49. axb5+ {[%clk 0:02:42.5]} 49... axb5+ {[%clk
0:03:11.8]} 50. Kd4 {[%clk 0:02:41.1]} 50... Kd6 {[%clk 0:03:11.2]} 51. Rf5
{[%clk 0:02:38.2]} 51... Ke6 {[%clk 0:03:09.5]} 52. Ke4 {[%clk 0:02:34.1]} 52...
Rxf6 {[%clk 0:03:07.4]} 53. Rxb5 {[%clk 0:02:32]} 53... Rf8 {[%clk 0:03:03]} 54.
Rb6+ {[%clk 0:02:30.1]} 54... Kd7 {[%clk 0:03:02.4]} 55. b5 {[%clk 0:02:29.3]}
55... Kc7 {[%clk 0:03:00.6]} 56. Rc6+ {[%clk 0:02:26.5]} 56... Kb7 {[%clk
0:02:59.4]} 57. Kd5 {[%clk 0:02:26]} 57... Rf5+ {[%clk 0:02:57.9]} 58. Kc4
{[%clk 0:02:24.3]} 58... Rf4+ {[%clk 0:02:56.6]} 59. Kc5 {[%clk 0:02:20.2]}
59... Rf5+ {[%clk 0:02:55.2]} 60. Kb4 {[%clk 0:02:18.6]} 60... Rf4+ {[%clk
0:02:54.4]} 61. Ka5 {[%clk 0:02:16.6]} 61... Rf5 {[%clk 0:02:48.6]} 62. Rb6+
{[%clk 0:02:14.6]} 62... Ka7 {[%clk 0:02:47.7]} 63. Ra6+ {[%clk 0:02:09.1]}
63... Kb7 {[%clk 0:02:46.7]} 64. Rb6+ {[%clk 0:02:07.8]} 64... Ka7 {[%clk
0:02:45.7]} 65. Rg6 {[%clk 0:02:00.5]} 65... Kb8 {[%clk 0:02:42.4]} 66. Ka6
{[%clk 0:01:57.7]} 66... Rf8 {[%clk 0:02:35.3]} 67. b6 {[%clk 0:01:55.1]} 67...
Ka8 {[%clk 0:02:30.5]} 68. Rg7 {[%clk 0:01:51.6]} 68... Kb8 {[%clk 0:02:23.5]}
69. Ra7 {[%clk 0:01:28.5]} 69... Rh8 {[%clk 0:02:17.9]} 70. Rb7+ {[%clk
0:01:21.6]} 70... Ka8 {[%clk 0:02:16.2]} 71. Ra7+ {[%clk 0:01:21]} 71... Kb8
{[%clk 0:02:15.4]} 72. Rg7 {[%clk 0:01:06.6]} 72... Ka8 {[%clk 0:02:14]} 73. b7+
{[%clk 0:00:59.6]} 73... Kb8 {[%clk 0:02:13]} 74. Kb6 {[%clk 0:00:58.7]} 74...
Rf8 {[%clk 0:02:06.6]} 75. Re7 {[%clk 0:00:44.2]} 75... Rh8 {[%clk 0:02:02.8]}
76. Rd7 {[%clk 0:00:34.6]} 76... Rg8 {[%clk 0:01:48.1]} 77. Rc7 {[%clk
0:00:26.3]} 77... Rg6+ {[%clk 0:01:44.6]} 78. Rc6 {[%clk 0:00:21]} 78... Rg8
{[%clk 0:01:43.5]} 79. Rc7 {[%clk 0:00:18.1]} 79... Rf8 {[%clk 0:01:40.5]} 80.
Rd7 {[%clk 0:00:17]} 80... Re8 {[%clk 0:01:38.9]} 81. Rf7 {[%clk 0:00:15.1]}
81... Rh8 {[%clk 0:01:37.2]} 82. Rg7 {[%clk 0:00:13.8]} 82... Re8 {[%clk
0:01:36]} 83. Rf7 {[%clk 0:00:13.1]} 83... Rd8 {[%clk 0:01:35.3]} 84. Rg7 {[%clk
0:00:12.6]} 84... Re8 {[%clk 0:01:34.4]} 85. Rf7 {[%clk 0:00:12.3]} 1/2-1/2

[Event "Live Chess"]
[Site "Chess.com"]
[Date "2023.05.21"]
[Round "-"]
[White "whitedjohn"]
[Black "GEMdzq"]
[Result "0-1"]
[WhiteElo "1647"]
[BlackElo "2217"]
[TimeControl "300"]
[EndTime "16:01:02 PDT"]
[Termination "GEMdzq won by resignation"]

1. e4 {[%clk 0:04:54.9]} 1... d6 {[%clk 0:04:58.5]} 2. d4 {[%clk 0:04:52.4]}
2... Nf6 {[%clk 0:04:58.4]} 3. Nc3 {[%clk 0:04:50.6]} 3... g6 {[%clk 0:04:57.6]}
4. Bc4 {[%clk 0:04:48.2]} 4... Bg7 {[%clk 0:04:56.9]} 5. Qe2 {[%clk 0:04:46.8]}
5... Nfd7 {[%clk 0:04:54.4]} 6. Be3 {[%clk 0:04:26]} 6... Na6 {[%clk 0:04:48.8]}
7. Bxa6 {[%clk 0:04:22.3]} 7... bxa6 {[%clk 0:04:47.4]} 8. Nf3 {[%clk 0:04:18]}
8... Rb8 {[%clk 0:04:45.6]} 9. b3 {[%clk 0:04:13.7]} 9... c5 {[%clk 0:04:42]}
10. Rd1 {[%clk 0:04:10.3]} 10... Qa5 {[%clk 0:04:40]} 11. O-O {[%clk 0:04:06.5]}
11... Qxc3 {[%clk 0:04:31.2]} 12. dxc5 {[%clk 0:04:04]} 12... Nxc5 {[%clk
0:04:28.9]} 13. Bd4 {[%clk 0:03:58.8]} 13... Bxd4 {[%clk 0:04:26.8]} 14. Nxd4
{[%clk 0:03:57.3]} 14... Bd7 {[%clk 0:04:20]} 15. f4 {[%clk 0:03:48.4]} 15...
Rb4 {[%clk 0:04:06.7]} 16. Rf3 {[%clk 0:03:40.8]} 16... Qb2 {[%clk 0:04:04.9]}
17. a4 {[%clk 0:03:28.9]} 17... Rxd4 {[%clk 0:04:01.6]} 0-1

[Event "Live Chess"]
[Site "Chess.com"]
[Date "2023.05.21"]
[Round "-"]
[White "HonestJoe1"]
[Black "CameronM1234"]
[Result "1-0"]
[WhiteElo "2096"]
[BlackElo "1095"]
[TimeControl "300"]
[EndTime "16:01:05 PDT"]
[Termination "HonestJoe1 won by checkmate"]

1. d4 {[%clk 0:04:56.6]} 1... Nf6 {[%clk 0:04:58.1]} 2. c4 {[%clk 0:04:54.5]}
2... g6 {[%clk 0:04:57.3]} 3. Nc3 {[%clk 0:04:53.4]} 3... Bg7 {[%clk 0:04:56.6]}
4. e4 {[%clk 0:04:52.6]} 4... d6 {[%clk 0:04:55.9]} 5. Nge2 {[%clk 0:04:52.1]}
5... O-O {[%clk 0:04:54.5]} 6. Ng3 {[%clk 0:04:51.7]} 6... c5 {[%clk 0:04:49.6]}
7. d5 {[%clk 0:04:50.7]} 7... Nbd7 {[%clk 0:04:44.7]} 8. Be2 {[%clk 0:04:49.2]}
8... Ne5 {[%clk 0:04:43.8]} 9. f4 {[%clk 0:04:41.2]} 9... Bg4 {[%clk 0:04:14.5]}
10. fxe5 {[%clk 0:04:37.8]} 10... Bxe2 {[%clk 0:04:13.1]} 11. Qxe2 {[%clk
0:04:35.6]} 11... dxe5 {[%clk 0:04:09.4]} 12. O-O {[%clk 0:04:33.6]} 12... Qb6
{[%clk 0:03:51]} 13. Be3 {[%clk 0:04:26.2]} 13... Rfc8 {[%clk 0:03:43.4]} 14. a3
{[%clk 0:04:18.6]} 14... a5 {[%clk 0:03:40]} 15. Nb5 {[%clk 0:03:49]} 15... Nd7
{[%clk 0:03:28.7]} 16. b4 {[%clk 0:03:45.7]} 16... axb4 {[%clk 0:03:23.2]} 17.
axb4 {[%clk 0:03:44.4]} 17... Rxa1 {[%clk 0:03:22.1]} 18. Rxa1 {[%clk
0:03:42.7]} 18... Qd8 {[%clk 0:03:08]} 19. bxc5 {[%clk 0:03:38]} 19... Nxc5
{[%clk 0:03:04.8]} 20. Rf1 {[%clk 0:03:34.4]} 20... Nb3 {[%clk 0:02:50.3]} 21.
Qf2 {[%clk 0:03:23.4]} 21... Nd4 {[%clk 0:02:45.4]} 22. Qxf7+ {[%clk 0:03:20.7]}
22... Kh8 {[%clk 0:02:43.1]} 23. Bg5 {[%clk 0:03:01.6]} 23... Qb6 {[%clk
0:02:21.8]} 24. Nxd4 {[%clk 0:02:45.8]} 24... exd4 {[%clk 0:02:20]} 25. Bxe7
{[%clk 0:02:35]} 25... d3+ {[%clk 0:02:04.6]} 26. c5 {[%clk 0:02:33.6]} 26...
Qb2 {[%clk 0:01:47.9]} 27. d6 {[%clk 0:02:12.2]} 27... Rxc5 {[%clk 0:00:13.3]}
28. Qe8+ {[%clk 0:02:07.5]} 28... Bf8 {[%clk 0:00:10.4]} 29. Qxf8# {[%clk
0:02:05.1]} 1-0

[Event "Live Chess"]
[Site "Chess.com"]
[Date "2023.05.21"]
[Round "-"]
[White "CheckThis4"]
[Black "WelshTiger"]
[Result "1-0"]
[WhiteElo "2525"]
[BlackElo "2369"]
[TimeControl "300"]
[EndTime "16:01:08 PDT"]
[Termination "CheckThis4 won by checkmate"]

1. d4 {[%clk 0:04:56.3]} 1... d5 {[%clk 0:04:58.2]} 2. Bg5 {[%clk 0:04:54.4]}
2... c5 {[%clk 0:04:55]} 3. e4 {[%clk 0:04:52.5]} 3... dxe4 {[%clk 0:04:50.9]}
4. d5 {[%clk 0:04:50.9]} 4... Nf6 {[%clk 0:04:46.9]} 5. Nc3 {[%clk 0:04:48.9]}
5... a6 {[%clk 0:04:43.5]} 6. Nge2 {[%clk 0:04:38.2]} 6... Bf5 {[%clk
0:04:30.4]} 7. Ng3 {[%clk 0:04:31.8]} 7... Bg6 {[%clk 0:04:29.5]} 8. h4 {[%clk
0:04:30.3]} 8... h6 {[%clk 0:04:28.4]} 9. Bxf6 {[%clk 0:04:28.2]} 9... exf6
{[%clk 0:04:28.3]} 10. h5 {[%clk 0:04:27.1]} 10... Bh7 {[%clk 0:04:27.3]} 11.
Ngxe4 {[%clk 0:04:16.8]} 11... f5 {[%clk 0:04:24.1]} 12. Nd2 {[%clk 0:04:09.8]}
12... Be7 {[%clk 0:04:17.8]} 13. Qf3 {[%clk 0:04:07.4]} 13... Nd7 {[%clk
0:04:12.5]} 14. O-O-O {[%clk 0:04:04.2]} 14... b5 {[%clk 0:04:10.8]} 15. d6
{[%clk 0:03:58.3]} 15... Bg5 {[%clk 0:04:09.5]} 16. Qe2+ {[%clk 0:03:32.3]}
16... Kf8 {[%clk 0:04:08]} 17. g3 {[%clk 0:03:29.7]} 17... f4 {[%clk 0:03:47.8]}
18. gxf4 {[%clk 0:03:27.3]} 18... Bxf4 {[%clk 0:03:46.4]} 19. Kb1 {[%clk
0:03:17.7]} 19... Qg5 {[%clk 0:03:04.7]} 20. Nde4 {[%clk 0:03:10.1]} 20... Qe5
{[%clk 0:03:03.8]} 21. Qf3 {[%clk 0:02:18.2]} 21... Re8 {[%clk 0:02:53.8]} 22.
Ng3 {[%clk 0:02:08.6]} 22... Kg8 {[%clk 0:02:25.8]} 23. Bh3 {[%clk 0:02:05.5]}
23... Nf6 {[%clk 0:02:21.6]} 24. d7 {[%clk 0:02:01.8]} 24... Rd8 {[%clk
0:02:20.9]} 25. Rhe1 {[%clk 0:01:56.1]} 25... Qc7 {[%clk 0:02:10.7]} 26. Nd5
{[%clk 0:01:48.3]} 26... Bxc2+ {[%clk 0:01:51.6]} 27. Kxc2 {[%clk 0:01:43.1]}
27... Nxd5 {[%clk 0:01:50.7]} 28. Rxd5 {[%clk 0:01:31.7]} 28... Bg5 {[%clk
0:01:37.2]} 29. Re8+ {[%clk 0:01:25.4]} 29... Kh7 {[%clk 0:01:36.6]} 30. Bf5+
{[%clk 0:01:23.9]} 30... g6 {[%clk 0:01:35.7]} 31. Bxg6+ {[%clk 0:01:22.6]}
31... fxg6 {[%clk 0:01:34.2]} 32. Qf7# {[%clk 0:01:21.5]} 1-0

[Event "Live Chess"]
[Site "Chess.com"]
[Date "2023.05.21"]
[Round "-"]
[White "toog"]
[Black "Ed_Knox"]
[Result "1-0"]
[WhiteElo "2607"]
[BlackElo "1441"]
[TimeControl "300"]
[EndTime "16:01:09 PDT"]
[Termination "toog won by checkmate"]

1. Nf3 {[%clk 0:04:57.7]} 1... g6 {[%clk 0:04:56.5]} 2. g3 {[%clk 0:04:56.7]}
2... Bg7 {[%clk 0:04:56]} 3. Bg2 {[%clk 0:04:56.4]} 3... d6 {[%clk 0:04:54.3]}
4. O-O {[%clk 0:04:56]} 4... Nc6 {[%clk 0:04:50.4]} 5. d4 {[%clk 0:04:55.4]}
5... Nf6 {[%clk 0:04:43.4]} 6. d5 {[%clk 0:04:54.3]} 6... Nb4 {[%clk 0:04:30.5]}
7. c4 {[%clk 0:04:52.5]} 7... O-O {[%clk 0:04:07.5]} 8. Nc3 {[%clk 0:04:51.1]}
8... c6 {[%clk 0:03:57.3]} 9. a3 {[%clk 0:04:48.4]} 9... Na6 {[%clk 0:03:54.6]}
10. dxc6 {[%clk 0:04:47.7]} 10... bxc6 {[%clk 0:03:53.8]} 11. Nd4 {[%clk
0:04:47.1]} 11... Bb7 {[%clk 0:03:50.2]} 12. Nxc6 {[%clk 0:04:45.1]} 12... Qc7
{[%clk 0:03:27]} 13. Nd5 {[%clk 0:04:40.9]} 13... Bxc6 {[%clk 0:03:17.5]} 14.
Nxc7 {[%clk 0:04:38.3]} 14... Bxg2 {[%clk 0:03:11.4]} 15. Nxa6 {[%clk 0:04:33]}
15... Bxf1 {[%clk 0:03:06.9]} 16. Qxf1 {[%clk 0:04:32.9]} 16... Ne4 {[%clk
0:02:55.9]} 17. Qg2 {[%clk 0:04:29.8]} 17... f5 {[%clk 0:02:42.9]} 18. f3 {[%clk
0:04:28.4]} 18... Nc5 {[%clk 0:02:36.8]} 19. Nxc5 {[%clk 0:04:26.4]} 19... dxc5
{[%clk 0:02:36]} 20. Be3 {[%clk 0:04:26.1]} 20... Bxb2 {[%clk 0:02:34.1]} 21.
Rb1 {[%clk 0:04:24.7]} 21... Rab8 {[%clk 0:02:32.9]} 22. Qf2 {[%clk 0:04:20.3]}
22... Bd4 {[%clk 0:02:29.4]} 23. Rxb8 {[%clk 0:04:18.6]} 23... Rxb8 {[%clk
0:02:26]} 24. Bxd4 {[%clk 0:04:17]} 24... Rb1+ {[%clk 0:02:20.8]} 25. Kg2 {[%clk
0:04:15.2]} 25... cxd4 {[%clk 0:02:13.3]} 26. Qxd4 {[%clk 0:04:15.1]} 26... Rb3
{[%clk 0:02:01.2]} 27. c5 {[%clk 0:04:13.7]} 27... Rxa3 {[%clk 0:01:58.7]} 28.
c6 {[%clk 0:04:11.9]} 28... Ra6 {[%clk 0:01:50.7]} 29. c7 {[%clk 0:04:10.5]}
29... Rd6 {[%clk 0:01:50.2]} 30. c8=Q+ {[%clk 0:04:08.8]} 30... Kf7 {[%clk
0:01:48.4]} 31. Qdc4+ {[%clk 0:04:08.1]} 31... e6 {[%clk 0:01:46.4]} 32. Q8c7+
{[%clk 0:04:06.7]} 32... Kf6 {[%clk 0:01:44.9]} 33. Qc3+ {[%clk 0:04:04.5]}
33... e5 {[%clk 0:01:43.1]} 34. Qxd6+ {[%clk 0:04:03.1]} 34... Kf7 {[%clk
0:01:42.1]} 35. Qcc7+ {[%clk 0:04:01.3]} 35... Kg8 {[%clk 0:01:41.3]} 36. Qdd8#
{[%clk 0:04:00.6]} 1-0